[Event "49th Bosna Tournament 2019"]
[Site "Sarajevo/"]
[Date "2019.04.28"]
[Round "2.1"]
[White "Arapovic, Vitomir"]
[Black "Predojevic, Borki"]
[Result "0-1"]
[ECO "C11"]
[WhiteElo "2331"]
[BlackElo "2621"]
[Annotator "RC"]
[PlyCount "128"]
[EventDate "2019.03.31"]
[EventType "swiss"]
[EventCountry "BIH"]
[SourceTitle "playchess.com"]
[Source "ChessBase"]
[SourceQuality "1"]
[TimeControl "40/5400+30:1800+30"]

1. e4 {[%emt 0:00:00]} e6 {[%emt 0:00:00]} 2. d4 {[%emt 0:00:00]} d5 {[%emt 0:00:00]} 3. Nc3 {[%emt 0:00:33]} Nf6 {[%emt 0:00:00]} 4. Bg5 {[%emt 0:00:16]} dxe4 {[%emt 0:00:00]} 5. Nxe4 {[%emt 0:00:25]} Be7 {[%emt 0:00:00]} 6. Nxf6+ {[%emt 0:01:20]} Bxf6 {[%emt 0:00:34]} 7. Bxf6 {[%emt 0:00:12]} Qxf6 {[%emt 0:00:10]} 8. c3 {[%emt 0:06:50]} c5 {[%emt 0:17:23]} 9. Nf3 {[%emt 0:11:16]} Nd7 {[%emt 0:14:53]} 10. dxc5 {[%emt 0:01:20]} Nxc5 {[%emt 0:02:23]} 11. Qd6 Qe7 {[%emt 0:00:34]} 12. Bb5+ {[%emt 0:01:54]} Bd7 {[%emt 0:00:43]} 13. Bxd7+ {[%emt 0:00:14]} Nxd7 {[%emt 0:00:51]} 14. O-O-O {[%emt 0:07:31]} Nf6 {[%emt 0:01:48]} 15. Rhe1 {[%emt 0:05:11]} Qxd6 {[%emt 0:04:01]} 16. Rxd6 {[%emt 0:01:12]} Ke7 {[%emt 0:00:02]} 17. Rd2 {[%emt 0:01:39]} Rhc8 {[%emt 0:03:49]} 18. Ne5 {[%emt 0:02:23]} Rc7 {[%emt 0:06:05]} 19. f4 {[%emt 0:10:41]} g6 {[%emt 0:00:05]} 20. g4 {[%emt 0:00:48]} Rd8 {[%emt 0:11:30]} 21. Rxd8 {[%emt 0:03:29]} Kxd8 {[%emt 0:00:16]} 22. Kd2 {[%emt 0:11:14]} Ke7 {[%emt 0:14:56]} 23. c4 {[%emt 0:01:43]} h5 {[%emt 0:00:24]} 24. h3 {[%emt 0:02:37]} hxg4 {[%emt 0:01:50]} 25. hxg4 {[%emt 0:00:02]} Rc8 {[%emt 0:00:05]} 26. Rh1 {[%emt 0:01:46]} g5 {[%emt 0:02:58]} 27. fxg5 {[%emt 0:12:26]} Ne4+ {[%emt 0:00:27]} 28. Ke3 {[%emt 0:00:21]} Nxg5 {[%emt 0:00:03]} 29. b3 {[%emt 0:01:00]} a6 {[%emt 0:06:14]} 30. Rh5 {[%emt 0:07:55]} f6 {[%emt 0:02:27]} 31. Nf3 {[%emt 0:00:28]} Nxf3 {[%emt 0:00:48]} 32. Kxf3 {[%emt 0:00:01]} Kd6 {[%emt 0:01:50]} 33. Kf4 {[%emt 0:02:08]} Rc7 {[%emt 0:00:51]} 34. Rh6 {[%emt 0:01:12]} Rf7 {[%emt 0:00:17]} 35. b4 {[%emt 0:02:06]} b6 {[%emt 0:04:05]} 36. Ke4 {[%emt 0:01:57]} Rg7 {[%emt 0:00:33]} 37. Rxf6 {[%emt 0:02:12]} Rxg4+ {[%emt 0:00:10]} 38. Rf4 {[%emt 0:00:26]} Rg2 {[%emt 0:01:09]} 39. a3 {[%emt 0:00:08]} Re2+ {[%emt 0:00:35]} 40. Kd3 {[%emt 0:00:00]} Ra2 {[%emt 0:00:00]} 41. Rd4+ {[%emt 0:00:22]} Kc6 {[%emt 0:02:40]} 42. Rh4 {[%emt 0:04:37]} Rxa3+ {[%emt 0:01:15]} 43. Kc2 {[%emt 0:01:35]} a5 {[%emt 0:14:31]} 44. bxa5 {[%emt 0:02:47]} Rxa5 {[%emt 0:00:19]} 45. Kc3 {[%emt 0:02:20]} Rf5 {[%emt 0:02:45]} 46. Rh8 {[%emt 0:00:19]} Rf3+ {[%emt 0:01:12]} 47. Kd4 {[%emt 0:03:16]} Rf1 {[%emt 0:08:33]} 48. Rc8+ {[%emt 0:01:25]} Kd6 {[%emt 0:00:13]} 49. Rd8+ {[%emt 0:00:17]} Kc6 {[%emt 0:00:05]} 50. Rc8+ {[%emt 0:00:19]} Kd7 {[%emt 0:00:21]} 51. Rb8 {[%emt 0:01:04]} Kc7 {[%emt 0:00:22]} 52. Re8 {[%emt 0:00:13]} Rd1+ {[%emt 0:02:56]} 53. Ke5 {[%emt 0:02:41]} Rd2 {[%emt 0:02:13]} 54. Rh8 {[%emt 0:02:56]} Rd7 {[%emt 0:01:24]} 55. Re8 {[%emt 0:02:30]} Kc6 {[%emt 0:01:24]} 56. Kxe6 {[%emt 0:05:00]} Rc7 {[%emt 0:00:09]} 57. Rb8 {[%emt 0:00:43]} Kc5 {[%emt 0:00:06]} 58. Ke5 {[%emt 0:01:57]} Rc6 {[%emt 0:00:47]} 59. Ke4 {[%emt 0:01:03]} Kxc4 {[%emt 0:00:18]} 60. Ke3 {[%emt 0:00:13]} Kc3 {[%emt 0:02:21]} 61. Ke2 {[%emt 0:00:11]} Rd6 {[%emt 0:00:30]} 62. Ke1 {[%emt 0:00:54]} Kb4 {[%emt 0:00:33]} 63. Rc8 {[%emt 0:00:21]} b5 {[%emt 0:00:11]} 64. Rc1 {[%emt 0:00:02]} Rd5 {[%emt 0:00:18]} 0-1

[Event "49th Bosna Tournament 2019"]
[Site "Sarajevo/"]
[Date "2019.04.28"]
[Round "2.6"]
[White "Sadikhov, Ulvi"]
[Black "Hadzovic, Amir"]
[Result "1-0"]
[ECO "B00"]
[WhiteElo "2479"]
[BlackElo "2258"]
[Annotator "RC"]
[PlyCount "91"]
[EventDate "2019.03.31"]
[EventType "swiss"]
[EventCountry "BIH"]
[SourceTitle "playchess.com"]
[Source "ChessBase"]
[SourceQuality "1"]
[TimeControl "40/5400+30:1800+30"]

1. e4 {[%emt 0:00:00]} d6 {[%emt 0:00:00]} 2. d4 {[%emt 0:00:00]} g6 {[%emt 0:00:00]} 3. Nf3 {[%emt 0:03:03]} Bg7 {[%emt 0:00:02]} 4. Bc4 {[%emt 0:00:10]} Nf6 {[%emt 0:03:49]} 5. Qe2 {[%emt 0:00:07]} c6 {[%emt 0:11:20]} 6. e5 {[%emt 0:01:29]} Nd5 {[%emt 0:02:30]} 7. h3 {[%emt 0:06:59]} h6 {[%emt 0:03:04]} 8. Nc3 {[%emt 0:07:37]} Be6 {[%emt 0:07:19]} 9. Bxd5 {[%emt 0:13:00]} cxd5 {[%emt 0:02:38]} 10. Bf4 {[%emt 0:04:55]} dxe5 {[%emt 0:03:09]} 11. Nxe5 {[%emt 0:02:27]} Nc6 {[%emt 0:01:58]} 12. Nxc6 {[%emt 0:02:36]} bxc6 {[%emt 0:02:21]} 13. Qe3 {[%emt 0:02:48]} c5 {[%emt 0:05:49]} 14. Be5 {[%emt 0:01:35]} O-O {[%emt 0:08:01]} 15. Bxg7 {[%emt 0:00:45]} Kxg7 {[%emt 0:00:05]} 16. O-O-O {[%emt 0:07:50]} c4 {[%emt 0:04:06]} 17. g4 {[%emt 0:03:09]} Rb8 {[%emt 0:04:34]} 18. f4 {[%emt 0:01:04]} Qb6 {[%emt 0:03:45]} 19. Kd2 {[%emt 0:02:13]} f6 {[%emt 0:03:09]} 20. Rde1 {[%emt 0:08:15]} Bf7 {[%emt 0:01:36]} 21. g5 {[%emt 0:00:12]} Rfe8 {[%emt 0:03:27]} 22. h4 {[%emt 0:00:51]} Kh7 {[%emt 0:01:16]} 23. f5 {[%emt 0:13:18]} e5 {[%emt 0:01:45]} 24. h5 {[%emt 0:07:51]} exd4 {[%emt 0:20:29]} 25. hxg6+ {[%emt 0:00:04]} Kg7 {[%emt 0:00:21]} 26. gxf6+ {[%emt 0:02:59]} Kxf6 {[%emt 0:01:00]} 27. Qf4 {[%emt 0:01:31]} dxc3+ {[%emt 0:00:20]} 28. bxc3 {[%emt 0:00:08]} Re4 {[%emt 0:03:01]} 29. Rxe4 {[%emt 0:00:15]} dxe4 {[%emt 0:00:06]} 30. Qh4+ {[%emt 0:01:53]} Ke5 {[%emt 0:00:44]} 31. Qg3+ {[%emt 0:02:04]} Kf6 {[%emt 0:00:44]} 32. gxf7 {[%emt 0:00:55]} Kxf7 {[%emt 0:00:39]} 33. Rg1 {[%emt 0:00:18]} Rd8+ {[%emt 0:00:42]} 34. Ke2 {[%emt 0:00:58]} Qd6 {[%emt 0:02:40]} 35. Qg7+ {[%emt 0:00:41]} Ke8 {[%emt 0:00:04]} 36. Qg8+ {[%emt 0:00:46]} Kd7 {[%emt 0:00:08]} 37. Rg7+ {[%emt 0:01:46]} Kc8 {[%emt 0:00:50]} 38. Qxc4+ {[%emt 0:00:04]} Kb8 {[%emt 0:00:06]} 39. Qb5+ {[%emt 0:00:09]} Qb6 {[%emt 0:00:06]} 40. Qe5+ {[%emt 0:00:00]} Kc8 {[%emt 0:00:00]} 41. Qxe4 {[%emt 0:02:41]} Qb5+ {[%emt 0:04:31]} 42. c4 {[%emt 0:03:40]} Re8 {[%emt 0:00:09]} 43. cxb5 {[%emt 0:00:19]} Rxe4+ {[%emt 0:00:06]} 44. Kd3 {[%emt 0:00:05]} Rf4 {[%emt 0:00:18]} 45. Rxa7 {[%emt 0:00:22]} Rxf5 {[%emt 0:00:10]} 46. a4 {[%emt 0:00:22]} 1-0

[Event "49th Bosna Tournament 2019"]
[Site "Sarajevo/"]
[Date "2019.04.28"]
[Round "3.1"]
[White "Predojevic, Borki"]
[Black "Soysal, Serkan"]
[Result "*"]
[ECO "D78"]
[WhiteElo "2621"]
[BlackElo "2424"]
[Annotator "RC"]
[PlyCount "49"]
[EventDate "2019.03.31"]
[EventType "swiss"]
[EventCountry "BIH"]
[SourceTitle "playchess.com"]
[Source "ChessBase"]
[SourceQuality "1"]
[TimeControl "40/5400+30:1800+30"]

1. Nf3 {[%emt 0:00:00]} d5 {[%emt 0:00:00]} 2. g3 {[%emt 0:00:00]} g6 {[%emt 0:00:00]} 3. Bg2 {[%emt 0:00:16]} Bg7 {[%emt 0:00:03]} 4. d4 {[%emt 0:00:04]} Nf6 {[%emt 0:00:16]} 5. O-O {[%emt 0:01:36]} O-O {[%emt 0:00:21]} 6. c4 {[%emt 0:00:07]} c6 {[%emt 0:00:07]} 7. b3 {[%emt 0:00:12]} dxc4 {[%emt 0:04:30]} 8. bxc4 {[%emt 0:00:12]} c5 {[%emt 0:00:02]} 9. Bb2 {[%emt 0:00:07]} Qb6 {[%emt 0:01:13]} 10. Qc1 {[%emt 0:00:23]} cxd4 {[%emt 0:11:16]} 11. Nxd4 {[%emt 0:01:11]} Nc6 {[%emt 0:04:08]} 12. Nxc6 {[%emt 0:01:01]} bxc6 {[%emt 0:00:03]} 13. Nd2 {[%emt 0:00:07]} Be6 {[%emt 0:00:06]} 14. Nb3 Qa6 {[%emt 0:00:30]} 15. Nd4 Bd7 {[%emt 0:00:30]} 16. Qc2 Rab8 {[%emt 0:00:30]} 17. Rfc1 Rfd8 {[%emt 0:00:30]} 18. e3 Ne8 {[%emt 0:00:30]} 19. Nb3 Bf5 {[%emt 0:00:30]} 20. e4 Bxb2 {[%emt 0:00:30]} 21. Qxb2 Be6 {[%emt 0:00:30]} 22. Qc3 Nd6 {[%emt 0:00:30]} 23. e5 Nf5 {[%emt 0:00:30]} 24. Nc5 Qb6 {[%emt 0:00:30]} 25. Nxe6 *

[Event "49th Bosna Tournament 2019"]
[Site "Sarajevo/"]
[Date "2019.04.30"]
[Round "5.6"]
[White "Bistric, Faruk"]
[Black "Kjartansson, Gudmundur"]
[Result "0-1"]
[ECO "B06"]
[WhiteElo "2347"]
[BlackElo "2444"]
[Annotator "ChessBase"]
[PlyCount "94"]
[EventDate "2019.03.31"]
[EventType "swiss"]
[EventCountry "BIH"]
[SourceTitle "playchess.com"]
[Source "ChessBase"]
[SourceQuality "1"]
[TimeControl "40/5400+30:1800+30"]

1. e4 {[%emt 0:00:02]} g6 {[%emt 0:00:19]} 2. f4 {[%emt 0:01:59]} d5 {[%emt 0:00:39]} 3. e5 {[%emt 0:02:34]} c5 {[%emt 0:00:28]} 4. g3 {[%emt 0:01:49]} h5 {[%emt 0:01:12]} 5. Nf3 {[%emt 0:07:00]} Nc6 {[%emt 0:09:23]} 6. Qe2 {[%emt 0:07:35]} Bg4 {[%emt 0:01:53]} 7. Qg2 {[%emt 0:01:14]} Nh6 {[%emt 0:11:46]} 8. b3 {[%emt 0:06:05]} Nf5 {[%emt 0:02:37]} 9. Bb2 {[%emt 0:01:21]} h4 {[%emt 0:11:30]} 10. e6 {[%emt 0:04:45]} f6 {[%emt 0:00:50]} 11. Nxh4 {[%emt 0:00:24]} Nxh4 {[%emt 0:13:42]} 12. gxh4 {[%emt 0:00:15]} Bxe6 {[%emt 0:00:41]} 13. Bd3 {[%emt 0:03:28]} Qd6 {[%emt 0:13:17]} 14. Bxg6+ {[%emt 0:00:44]} Kd8 {[%emt 0:00:15]} 15. Qf2 {[%emt 0:06:57]} d4 {[%emt 0:08:40]} 16. Na3 {[%emt 0:06:09]} Bd5 {[%emt 0:01:08]} 17. O-O-O {[%emt 0:02:25]} Bxh1 {[%emt 0:00:06]} 18. Rxh1 {[%emt 0:00:09]} f5 {[%emt 0:00:56]} 19. h5 {[%emt 0:03:33]} Bh6 {[%emt 0:03:25]} 20. Rf1 {[%emt 0:00:20]} Rf8 {[%emt 0:00:53]} 21. c3 {[%emt 0:00:23]} Rc8 {[%emt 0:01:18]} 22. Nc2 {[%emt 0:03:12]} e5 {[%emt 0:03:13]} 23. Kb1 {[%emt 0:07:47]} Bxf4 {[%emt 0:01:13]} 24. cxd4 {[%emt 0:00:16]} Nxd4 {[%emt 0:00:52]} 25. Nxd4 {[%emt 0:02:58]} cxd4 {[%emt 0:00:11]} 26. Bxd4 {[%emt 0:00:42]} Qxd4 {[%emt 0:00:09]} 27. Qxd4+ {[%emt 0:00:22]} exd4 {[%emt 0:00:03]} 28. Rxf4 {[%emt 0:00:11]} Rc5 {[%emt 0:04:55]} 29. Rxd4+ {[%emt 0:12:03]} Ke7 {[%emt 0:00:04]} 30. b4 {[%emt 0:03:12]} Re5 {[%emt 0:05:04]} 31. Rf4 {[%emt 0:00:18]} Kf6 {[%emt 0:01:30]} 32. h4 {[%emt 0:00:46]} Re1+ {[%emt 0:00:32]} 33. Kc2 {[%emt 0:00:12]} Ke5 {[%emt 0:00:02]} 34. Rf3 {[%emt 0:05:26]} Re4 {[%emt 0:01:47]} 35. Rh3 {[%emt 0:02:26]} Rf6 {[%emt 0:00:24]} 36. a3 {[%emt 0:01:08]} Kf4 {[%emt 0:01:40]} 37. Kd1 {[%emt 0:01:00]} Ke5 {[%emt 0:00:28]} 38. Rh1 {[%emt 0:02:35]} Rd6 {[%emt 0:00:59]} 39. Rf1 {[%emt 0:02:02]} Rf4 {[%emt 0:00:37]} 40. Re1+ {[%emt 0:00:00]} Re4 {[%emt 0:00:00]} 41. Rh1 {[%emt 0:06:54]} Kf6 {[%emt 0:03:30]} 42. Rh2 {[%emt 0:05:18]} Rd3 {[%emt 0:02:52]} 43. Rf2 {[%emt 0:01:06]} Rd5 {[%emt 0:00:55]} 44. Rh2 {[%emt 0:05:01]} Rdd4 {[%emt 0:01:02]} 45. Rf2 {[%emt 0:01:01]} Rf4 {[%emt 0:00:13]} 46. Re2 {[%emt 0:00:24]} Rde4 {[%emt 0:01:13]} 47. Rxe4 {[%emt 0:00:24]} Rxe4 {[%emt 0:00:12]} 0-1

[Event "49th Bosna Tournament 2019"]
[Site "Sarajevo/"]
[Date "2019.04.30"]
[Round "5.8"]
[White "Savanovic, Aleksandar"]
[Black "Sutkovic, Damir"]
[Result "1/2-1/2"]
[ECO "B42"]
[WhiteElo "2423"]
[BlackElo "2350"]
[Annotator "ChessBase"]
[PlyCount "25"]
[EventDate "2019.03.31"]
[EventType "swiss"]
[EventCountry "BIH"]
[SourceTitle "playchess.com"]
[Source "ChessBase"]
[SourceQuality "1"]
[TimeControl "40/5400+30:1800+30"]

1. e4 {[%emt 0:00:00]} c5 {[%emt 0:00:00]} 2. Nf3 {[%emt 0:00:00]} e6 {[%emt 0:00:02]} 3. d4 {[%emt 0:00:00]} cxd4 {[%emt 0:00:05]} 4. Nxd4 {[%emt 0:00:00]} a6 {[%emt 0:00:05]} 5. Bd3 {[%emt 0:00:31]} g6 {[%emt 0:00:18]} 6. O-O {[%emt 0:03:07]} Bg7 {[%emt 0:00:19]} 7. Nf3 {[%emt 0:00:06]} Nc6 {[%emt 0:02:15]} 8. c4 {[%emt 0:04:44]} Nge7 {[%emt 0:01:17]} 9. Nc3 {[%emt 0:04:32]} O-O {[%emt 0:00:57]} 10. Re1 {[%emt 0:17:10]} d5 {[%emt 0:15:15]} 11. cxd5 {[%emt 0:17:39]} exd5 {[%emt 0:00:09]} 12. h3 {[%emt 0:02:46]} dxe4 {[%emt 0:19:49]} 13. Bxe4 {[%emt 0:03:21]} 1/2-1/2

[Event "49th Bosna Tournament 2019"]
[Site "Sarajevo/"]
[Date "2019.04.30"]
[Round "5.9"]
[White "Vajic, Goran"]
[Black "Subelj, Jan"]
[Result "1/2-1/2"]
[ECO "C54"]
[WhiteElo "2280"]
[BlackElo "2407"]
[Annotator "ChessBase"]
[PlyCount "71"]
[EventDate "2019.03.31"]
[EventType "swiss"]
[EventCountry "BIH"]
[SourceTitle "playchess.com"]
[Source "ChessBase"]
[SourceQuality "1"]
[TimeControl "40/5400+30:1800+30"]

1. e4 e5 2. Nf3 Nc6 3. d4 exd4 4. Bc4 Bc5 5. c3 Nf6 6. cxd4 Bb4+ 7. Bd2 Bxd2+ 8. Nbxd2 d5 9. exd5 Nxd5 10. Qb3 Nce7 11. O-O O-O 12. Rfe1 Nb6 13. Rac1 Nxc4 14. Nxc4 Nd5 15. Ne3 Nb6 16. d5 Bd7 17. Nd4 Qf6 18. Qb4 Rfe8 19. Nb5 Bxb5 20. Qxb5 a6 21. Qb3 Re7 22. Red1 Rd7 23. d6 Rxd6 24. Rxc7 Rxd1+ 25. Qxd1 Qxb2 26. Rxb7 Qf6 27. Qb1 Nc8 28. Nd5 Qd8 29. Qb3 Nd6 30. Rb6 Nb5 31. Qc4 Rb8 32. Rxb8 Qxb8 33. a4 Nd6 34. Qxa6 Qb1+ 35. Qf1 Qb3 36. Qd1 1/2-1/2

[Event "49th Bosna Tournament 2019"]
[Site "Sarajevo/"]
[Date "2019.04.30"]
[Round "6.7"]
[White "Maksimovic, Bojan"]
[Black "Savanovic, Aleksandar"]
[Result "1/2-1/2"]
[ECO "C97"]
[WhiteElo "2288"]
[BlackElo "2423"]
[Annotator "NA RC"]
[PlyCount "59"]
[EventDate "2019.03.31"]
[EventType "swiss"]
[EventCountry "BIH"]
[SourceTitle "playchess.com"]
[Source "ChessBase"]
[SourceQuality "1"]
[TimeControl "40/5400+30:1800+30"]

1. e4 e5 2. Nf3 Nc6 3. Bb5 a6 4. Ba4 Nf6 5. O-O Be7 6. Re1 b5 7. Bb3 d6 8. c3 O-O 9. h3 Na5 10. Bc2 c5 11. d4 Qc7 12. d5 Bd7 13. Nbd2 g6 14. Nf1 Nh5 15. Bh6 Ng7 16. Ng3 Nb7 17. b3 Nd8 18. a4 Rb8 19. axb5 axb5 20. b4 f6 21. bxc5 Qxc5 22. Qd2 Nf7 23. Be3 Qc7 24. Ra7 Rb7 25. Rea1 Rfb8 26. Rxb7 Rxb7 27. Ra8+ Rb8 28. Ra7 Rb7 29. Ra8+ Rb8 30. Ra7 1/2-1/2

[Event "49th Bosna Tournament 2019"]
[Site "Sarajevo/"]
[Date "2019.04.30"]
[Round "6.8"]
[White "Subelj, Jan"]
[Black "Tarun Kanyamarala"]
[Result "1-0"]
[ECO "B12"]
[WhiteElo "2407"]
[BlackElo "2070"]
[Annotator "ChessBase"]
[PlyCount "83"]
[EventDate "2019.03.31"]
[EventType "swiss"]
[EventCountry "BIH"]
[SourceTitle "playchess.com"]
[Source "ChessBase"]
[SourceQuality "1"]
[TimeControl "40/5400+30:1800+30"]

1. e4 {[%emt 0:00:06]} c6 {[%emt 0:00:00]} 2. d4 {[%emt 0:00:27]} d5 {[%emt 0:00:00]} 3. f3 {[%emt 0:00:43]} e6 {[%emt 0:01:26]} 4. Nc3 {[%emt 0:00:40]} Bb4 {[%emt 0:00:44]} 5. Bf4 {[%emt 0:01:05]} Ne7 {[%emt 0:01:09]} 6. a3 {[%emt 0:02:48]} Ba5 {[%emt 0:01:06]} 7. Qd3 {[%emt 0:07:02]} Nd7 {[%emt 0:05:18]} 8. Nge2 {[%emt 0:02:21]} O-O {[%emt 0:01:22]} 9. Bd6 {[%emt 0:10:52]} Bc7 {[%emt 0:03:35]} 10. Bxc7 {[%emt 0:01:07]} Qxc7 {[%emt 0:00:05]} 11. g3 {[%emt 0:01:20]} c5 {[%emt 0:03:47]} 12. exd5 {[%emt 0:00:06]} exd5 {[%emt 0:00:12]} 13. Bg2 {[%emt 0:01:20]} Nf6 {[%emt 0:10:44]} 14. O-O {[%emt 0:03:40]} Bf5 {[%emt 0:00:54]} 15. Qd2 {[%emt 0:00:17]} Rad8 {[%emt 0:02:32]} 16. Rad1 {[%emt 0:06:56]} Nc6 {[%emt 0:05:55]} 17. dxc5 {[%emt 0:02:08]} d4 {[%emt 0:01:36]} 18. Nb5 {[%emt 0:00:55]} Qe5 {[%emt 0:01:47]} 19. Nbxd4 {[%emt 0:02:06]} Qxc5 {[%emt 0:02:30]} 20. Kh1 {[%emt 0:02:03]} Rfe8 {[%emt 0:01:02]} 21. Qg5 {[%emt 0:08:38]} Nxd4 {[%emt 0:06:36]} 22. Nxd4 {[%emt 0:00:15]} Rxd4 {[%emt 0:00:12]} 23. b4 {[%emt 0:01:06]} Qd6 {[%emt 0:01:33]} 24. Rxd4 {[%emt 0:00:08]} Qxd4 {[%emt 0:00:04]} 25. Qxf5 {[%emt 0:00:06]} Qc3 {[%emt 0:00:54]} 26. Qd3 {[%emt 0:08:28]} Re3 {[%emt 0:14:47]} 27. Qxc3 {[%emt 0:04:44]} Rxc3 {[%emt 0:01:06]} 28. f4 {[%emt 0:01:19]} b6 {[%emt 0:01:35]} 29. Rc1 {[%emt 0:01:30]} b5 {[%emt 0:07:56]} 30. Bf1 {[%emt 0:03:41]} a6 {[%emt 0:03:12]} 31. Rd1 {[%emt 0:07:59]} Kf8 {[%emt 0:00:45]} 32. Rd8+ {[%emt 0:00:22]} Ke7 {[%emt 0:00:06]} 33. Ra8 {[%emt 0:00:04]} Rxa3 {[%emt 0:02:13]} 34. Bxb5 {[%emt 0:00:11]} Ra1+ {[%emt 0:01:30]} 35. Kg2 {[%emt 0:00:01]} Rb1 {[%emt 0:00:08]} 36. Ra7+ {[%emt 0:01:06]} Kf8 {[%emt 0:00:22]} 37. Bc4 {[%emt 0:02:35]} Rxb4 {[%emt 0:00:23]} 38. Bb3 {[%emt 0:00:06]} Ke8 {[%emt 0:00:58]} 39. Bxf7+ {[%emt 0:00:09]} Kf8 {[%emt 0:00:17]} 40. Bb3 {[%emt 0:00:00]} Rb6 {[%emt 0:00:00]} 41. Rf7+ {[%emt 0:01:39]} Ke8 {[%emt 0:00:14]} 42. Rxg7 {[%emt 0:00:04]} 1-0

[Event "49th Bosna Tournament 2019"]
[Site "Sarajevo/"]
[Date "2019.04.30"]
[Round "6.9"]
[White "Buljubasic, Sabahudin"]
[Black "Ozen, Deniz"]
[Result "1-0"]
[ECO "C11"]
[WhiteElo "2347"]
[BlackElo "2403"]
[Annotator "ChessBase"]
[PlyCount "75"]
[EventDate "2019.03.31"]
[EventType "swiss"]
[EventCountry "BIH"]
[SourceTitle "playchess.com"]
[Source "ChessBase"]
[SourceQuality "1"]
[TimeControl "40/5400+30:1800+30"]

1. e4 e6 2. d4 d5 3. Nc3 Nf6 4. e5 Nfd7 5. Nce2 c5 6. c3 Nc6 7. Nf3 Qa5 8. Bf4 b5 9. dxc5 Bxc5 10. b4 Nxb4 11. cxb4 Bxb4+ 12. Bd2 O-O 13. Ned4 a6 14. Bxb4 Qxb4+ 15. Qd2 Qe7 16. Nc6 Qe8 17. Rc1 f6 18. Bd3 Bb7 19. Na5 Rb8 20. exf6 Nxf6 21. Rc7 Ba8 22. O-O Ne4 23. Qe3 Qd8 24. Rfc1 Qf6 25. Nc6 Rb7 26. Nce5 Qd8 27. Rxb7 Bxb7 28. h3 h6 29. Qa7 Nd6 30. Qd4 Nc4 31. Bb1 Nd6 32. Qg4 Nf5 33. Ng6 Rf6 34. Nf4 Qd6 35. Re1 Bc8 36. Nh5 Rf7 37. Ne5 Rc7 38. Nf6+ 1-0

[Event "49th Bosna Tournament 2019"]
[Site "Sarajevo/"]
[Date "2019.05.01"]
[Round "7.6"]
[White "Klasan, Vladimir"]
[Black "Nestorovic, Nikola"]
[Result "1/2-1/2"]
[ECO "C44"]
[WhiteElo "2366"]
[BlackElo "2473"]
[Annotator "ChessBase"]
[PlyCount "77"]
[EventDate "2019.03.31"]
[EventType "swiss"]
[EventCountry "BIH"]
[SourceTitle "playchess.com"]
[Source "ChessBase"]
[SourceQuality "1"]
[TimeControl "40/5400+30:1800+30"]

1. e4 {[%emt 0:00:00]} e5 {[%emt 0:00:00]} 2. Nf3 {[%emt 0:00:00]} Nc6 {[%emt 0:00:00]} 3. d4 {[%emt 0:00:00]} exd4 {[%emt 0:00:00]} 4. Nxd4 {[%emt 0:00:03]} Nf6 {[%emt 0:00:12]} 5. Nxc6 {[%emt 0:00:11]} bxc6 {[%emt 0:00:07]} 6. Bd3 {[%emt 0:00:13]} d5 {[%emt 0:01:55]} 7. exd5 {[%emt 0:00:23]} cxd5 {[%emt 0:00:07]} 8. Bb5+ {[%emt 0:00:20]} Bd7 {[%emt 0:00:19]} 9. Bxd7+ {[%emt 0:00:13]} Qxd7 {[%emt 0:00:07]} 10. O-O {[%emt 0:00:21]} Be7 {[%emt 0:00:17]} 11. Nd2 {[%emt 0:00:30]} O-O {[%emt 0:00:56]} 12. b3 {[%emt 0:00:18]} a5 {[%emt 0:04:08]} 13. a4 {[%emt 0:00:32]} Qf5 {[%emt 0:01:43]} 14. Bb2 {[%emt 0:01:28]} c5 {[%emt 0:09:57]} 15. Nf3 {[%emt 0:12:24]} Rfd8 {[%emt 0:02:40]} 16. Re1 {[%emt 0:03:06]} Ne4 {[%emt 0:04:39]} 17. Qd3 {[%emt 0:01:47]} Bf6 {[%emt 0:04:48]} 18. Bxf6 {[%emt 0:03:23]} Qxf6 {[%emt 0:00:02]} 19. c4 {[%emt 0:06:12]} Qc3 {[%emt 0:04:36]} 20. Qxc3 {[%emt 0:05:34]} Nxc3 {[%emt 0:00:04]} 21. cxd5 {[%emt 0:00:28]} Rxd5 {[%emt 0:01:08]} 22. Rac1 {[%emt 0:10:13]} Na2 {[%emt 0:00:13]} 23. Rcd1 {[%emt 0:00:25]} Rxd1 {[%emt 0:21:05]} 24. Rxd1 {[%emt 0:00:08]} f6 {[%emt 0:00:01]} 25. Rd7 {[%emt 0:12:54]} c4 {[%emt 0:01:26]} 26. bxc4 {[%emt 0:01:38]} Nc3 {[%emt 0:01:01]} 27. c5 {[%emt 0:12:08]} Nxa4 {[%emt 0:00:44]} 28. c6 {[%emt 0:01:52]} Nc5 {[%emt 0:02:47]} 29. Rd6 {[%emt 0:03:50]} Na6 {[%emt 0:13:30]} 30. Nd2 {[%emt 0:04:37]} a4 {[%emt 0:02:24]} 31. Nc4 {[%emt 0:01:22]} Rb8 {[%emt 0:07:01]} 32. g3 {[%emt 0:00:47]} Rb1+ {[%emt 0:04:59]} 33. Kg2 {[%emt 0:00:07]} Rc1 {[%emt 0:00:02]} 34. c7 {[%emt 0:02:51]} Nxc7 {[%emt 0:00:54]} 35. Rd8+ {[%emt 0:00:08]} Kf7 {[%emt 0:00:29]} 36. Rd7+ {[%emt 0:00:02]} Ke6 {[%emt 0:00:14]} 37. Rxc7 {[%emt 0:00:05]} a3 {[%emt 0:00:07]} 38. f4 {[%emt 0:06:16]} f5 {[%emt 0:01:51]} 39. Ra7 1/2-1/2

[Event "49th Bosna Tournament 2019"]
[Site "Sarajevo/"]
[Date "2019.05.01"]
[Round "7.7"]
[White "Dizdarevic, Emir"]
[Black "Soysal, Serkan"]
[Result "1/2-1/2"]
[ECO "A05"]
[WhiteElo "2423"]
[BlackElo "2424"]
[Annotator "NA"]
[PlyCount "70"]
[EventDate "2019.03.31"]
[EventType "swiss"]
[EventCountry "BIH"]
[SourceTitle "playchess.com"]
[Source "ChessBase"]
[SourceQuality "1"]
[TimeControl "40/5400+30:1800+30"]

1. Nf3 Nf6 2. b3 g6 3. Bb2 Bg7 4. g3 d6 5. Bg2 e5 6. O-O O-O 7. c4 c5 8. Nc3 Nc6 9. d3 Bg4 10. h3 Be6 11. Ng5 Bd7 12. e3 h6 13. Nge4 Ne8 14. Nd5 f5 15. Nec3 Rb8 16. Rb1 Nf6 17. Qd2 Nxd5 18. Nxd5 b5 19. cxb5 Rxb5 20. Bc3 a5 21. a3 Kh7 22. b4 cxb4 23. axb4 Qb8 24. Rb2 axb4 25. Nxb4 Nxb4 26. Rxb4 Rxb4 27. Bxb4 f4 28. Rc1 f3 29. Bf1 h5 30. Ba3 Rc8 31. Rxc8 Qxc8 32. Qd1 Qf8 33. Qc1 Qb8 34. Qd1 Qf8 35. Qb3 Qa8 1/2-1/2

[Event "49th Bosna Tournament 2019"]
[Site "Sarajevo/"]
[Date "2019.05.01"]
[Round "7.8"]
[White "Savanovic, Aleksandar"]
[Black "Trumic, Enes"]
[Result "1-0"]
[ECO "C78"]
[WhiteElo "2423"]
[BlackElo "2241"]
[Annotator "NA"]
[PlyCount "40"]
[EventDate "2019.03.31"]
[EventType "swiss"]
[EventCountry "BIH"]
[SourceTitle "playchess.com"]
[Source "ChessBase"]
[SourceQuality "1"]
[TimeControl "40/5400+30:1800+30"]

1. e4 e5 2. Nf3 Nc6 3. Bb5 a6 4. Ba4 Nf6 5. O-O b5 6. Bb3 Bc5 7. c3 Bb6 8. d4 O-O 9. Nxe5 Na5 10. Bc2 d6 11. Nf3 Bg4 12. h3 Bh5 13. g4 Bg6 14. Bg5 Re8 15. Nbd2 Qd7 16. Bxf6 gxf6 17. Nh4 d5 18. Qf3 dxe4 19. Nxe4 Bxe4 20. Bxe4 Rad8 1-0

[Event "49th Bosna Tournament 2019"]
[Site "Sarajevo/"]
[Date "2019.05.01"]
[Round "7.9"]
[White "Borsuk, Konstantin"]
[Black "Maksimovic, Bojan"]
[Result "1-0"]
[ECO "A43"]
[WhiteElo "2368"]
[BlackElo "2288"]
[Annotator "NA"]
[PlyCount "39"]
[EventDate "2019.03.31"]
[EventType "swiss"]
[EventCountry "BIH"]
[SourceTitle "playchess.com"]
[Source "ChessBase"]
[SourceQuality "1"]
[TimeControl "40/5400+30:1800+30"]

1. c4 g6 2. Nc3 Bg7 3. d4 c5 4. d5 Bxc3+ 5. bxc3 f5 6. g4 fxg4 7. h3 g3 8. fxg3 d6 9. e4 Nf6 10. e5 dxe5 11. Bg2 Nbd7 12. Nf3 Qa5 13. O-O Qxc3 14. Bh6 Qxc4 15. Rc1 Qxd5 16. Qxd5 Nxd5 17. Nxe5 N5f6 18. Nxd7 Bxd7 19. Rxc5 Bc6 20. Rxc6 1-0